{"text_format":"1","workbook":"xlsx","n_sheets":12,"sheets":["Uitleg","Adres 1","Adres 2","Adres 3","Adres 4","Adres 5","Adres 6","Adres 7","Adres 8","Adres 9","Adres 10","Lijsten"],"not_rendered":{"charts":0,"images":1,"macros":1,"external_links":0,"defined_names":28,"comments":0,"pivot_tables":0},"unopened":[],"bounds":{"document_bytes":16777216,"sheet_cells":100000,"rows_first":2000,"rows_last":500,"rows_between":2000,"halvings":0,"cell_chars":16384,"cell_head_chars":4096},"cells_cut":0,"cells_raw":0,"read":"whole","date_system":"1900"}

{"sheet":"Uitleg","index":0,"n_rows":37,"n_cols":3,"rows_kept":37,"cut":false,"hidden":false,"merged":[]}
[]
[]
[]
[]
[]
[]
[]
[]
[]
[]
[]
[]
[]
[]
[]
[null,null,"Ik wil één verzamelfactuur ontvangen voor alle afleveradressen."]
[]
[null,"Factuuradres"]
[]
[null,"Bedrijfsnaam*"]
[null,"KvK-nummer*"]
[null,"BTW-nummer*"]
[null,"Straatnaam*"]
[null,"Huisnummer*"]
[null,"Toevoeging"]
[null,"Postcode*"]
[null,"Woonplaats*"]
[null,"Land*"]
[]
[null,"Contactpersoon"]
[]
[null,"Aanhef*"]
[null,"Voornaam*"]
[null,"Tussenvoegsel"]
[null,"Achternaam*"]
[null,"E-mailadres*"]
[null,"Telefoonnummer*"]

{"sheet":"Adres 1","index":1,"n_rows":41,"n_cols":5,"rows_kept":41,"cut":false,"hidden":false,"merged":[]}
[]
[null,"Bestellijst 1",null,null,"Factuuradres 1"]
[]
[null,"Kerstpakket naam","Aantal",null,"Bedrijfsnaam*"]
[null,null,null,null,"KvK-nummer*"]
[]
[null,null,null,null,"Aanhef*"]
[null,null,null,null,"Voornaam*"]
[null,null,null,null,"Tussenvoegsel"]
[null,null,null,null,"Achternaam*"]
[]
[null,null,null,null,"Straatnaam*"]
[null,null,null,null,"Huisnummer*"]
[null,null,null,null,"Toevoeging"]
[null,null,null,null,"Postcode*"]
[null,null,null,null,"Woonplaats*"]
[null,null,null,null,"Land*"]
[]
[null,null,null,null,"Bezorgadres 1"]
[]
[null,null,null,null,"Bedrijfsnaam*"]
[null,null,null,null,"Straatnaam*"]
[null,null,null,null,"Huisnummer*"]
[null,null,null,null,"Toevoeging"]
[null,null,null,null,"Postcode*"]
[null,null,null,null,"Woonplaats*"]
[null,null,null,null,"Land*"]
[]
[null,null,null,null,"Contactpersoon"]
[]
[null,null,null,null,"Aanhef*"]
[null,null,null,null,"Voornaam*"]
[null,null,null,null,"Tussenvoegsel"]
[null,null,null,null,"Achternaam*"]
[null,null,null,null,"E-mailadres*"]
[null,null,null,null,"Telefoonnummer*"]
[]
[null,null,null,null,"Bezorgmoment"]
[]
[null,null,null,null,"Kies uw bezorgdatum*"]
[null,null,null,null,"Kies een levertijd*"]

{"sheet":"Adres 2","index":2,"n_rows":41,"n_cols":5,"rows_kept":41,"cut":false,"hidden":false,"merged":[]}
[]
[null,"Bestellijst 2",null,null,"Factuuradres 2"]
[]
[null,"Kerstpakket naam","Aantal",null,"Bedrijfsnaam*"]
[null,null,null,null,"KvK-nummer*"]
[]
[null,null,null,null,"Aanhef*"]
[null,null,null,null,"Voornaam*"]
[null,null,null,null,"Tussenvoegsel"]
[null,null,null,null,"Achternaam*"]
[]
[null,null,null,null,"Straatnaam*"]
[null,null,null,null,"Huisnummer*"]
[null,null,null,null,"Toevoeging"]
[null,null,null,null,"Postcode*"]
[null,null,null,null,"Woonplaats*"]
[null,null,null,null,"Land*"]
[]
[null,null,null,null,"Bezorgadres 2"]
[]
[null,null,null,null,"Bedrijfsnaam*"]
[null,null,null,null,"Straatnaam*"]
[null,null,null,null,"Huisnummer*"]
[null,null,null,null,"Toevoeging"]
[null,null,null,null,"Postcode*"]
[null,null,null,null,"Woonplaats*"]
[null,null,null,null,"Land*"]
[]
[null,null,null,null,"Contactpersoon"]
[]
[null,null,null,null,"Aanhef*"]
[null,null,null,null,"Voornaam*"]
[null,null,null,null,"Tussenvoegsel"]
[null,null,null,null,"Achternaam*"]
[null,null,null,null,"E-mailadres*"]
[null,null,null,null,"Telefoonnummer*"]
[]
[null,null,null,null,"Bezorgmoment"]
[]
[null,null,null,null,"Kies uw bezorgdatum*"]
[null,null,null,null,"Kies een levertijd*"]

{"sheet":"Adres 3","index":3,"n_rows":41,"n_cols":5,"rows_kept":41,"cut":false,"hidden":false,"merged":[]}
[]
[null,"Bestellijst 3",null,null,"Factuuradres 3"]
[]
[null,"Kerstpakket naam","Aantal",null,"Bedrijfsnaam*"]
[null,null,null,null,"KvK-nummer*"]
[]
[null,null,null,null,"Aanhef*"]
[null,null,null,null,"Voornaam*"]
[null,null,null,null,"Tussenvoegsel"]
[null,null,null,null,"Achternaam*"]
[]
[null,null,null,null,"Straatnaam*"]
[null,null,null,null,"Huisnummer*"]
[null,null,null,null,"Toevoeging"]
[null,null,null,null,"Postcode*"]
[null,null,null,null,"Woonplaats*"]
[null,null,null,null,"Land*"]
[]
[null,null,null,null,"Bezorgadres 3"]
[]
[null,null,null,null,"Bedrijfsnaam*"]
[null,null,null,null,"Straatnaam*"]
[null,null,null,null,"Huisnummer*"]
[null,null,null,null,"Toevoeging"]
[null,null,null,null,"Postcode*"]
[null,null,null,null,"Woonplaats*"]
[null,null,null,null,"Land*"]
[]
[null,null,null,null,"Contactpersoon"]
[]
[null,null,null,null,"Aanhef*"]
[null,null,null,null,"Voornaam*"]
[null,null,null,null,"Tussenvoegsel"]
[null,null,null,null,"Achternaam*"]
[null,null,null,null,"E-mailadres*"]
[null,null,null,null,"Telefoonnummer*"]
[]
[null,null,null,null,"Bezorgmoment"]
[]
[null,null,null,null,"Kies uw bezorgdatum*"]
[null,null,null,null,"Kies een levertijd*"]

{"sheet":"Adres 4","index":4,"n_rows":41,"n_cols":5,"rows_kept":41,"cut":false,"hidden":false,"merged":[]}
[]
[null,"Bestellijst 4",null,null,"Factuuradres 4"]
[]
[null,"Kerstpakket naam","Aantal",null,"Bedrijfsnaam*"]
[null,null,null,null,"KvK-nummer*"]
[]
[null,null,null,null,"Aanhef*"]
[null,null,null,null,"Voornaam*"]
[null,null,null,null,"Tussenvoegsel"]
[null,null,null,null,"Achternaam*"]
[]
[null,null,null,null,"Straatnaam*"]
[null,null,null,null,"Huisnummer*"]
[null,null,null,null,"Toevoeging"]
[null,null,null,null,"Postcode*"]
[null,null,null,null,"Woonplaats*"]
[null,null,null,null,"Land*"]
[]
[null,null,null,null,"Bezorgadres 4"]
[]
[null,null,null,null,"Bedrijfsnaam*"]
[null,null,null,null,"Straatnaam*"]
[null,null,null,null,"Huisnummer*"]
[null,null,null,null,"Toevoeging"]
[null,null,null,null,"Postcode*"]
[null,null,null,null,"Woonplaats*"]
[null,null,null,null,"Land*"]
[]
[null,null,null,null,"Contactpersoon"]
[]
[null,null,null,null,"Aanhef*"]
[null,null,null,null,"Voornaam*"]
[null,null,null,null,"Tussenvoegsel"]
[null,null,null,null,"Achternaam*"]
[null,null,null,null,"E-mailadres*"]
[null,null,null,null,"Telefoonnummer*"]
[]
[null,null,null,null,"Bezorgmoment"]
[]
[null,null,null,null,"Kies uw bezorgdatum*"]
[null,null,null,null,"Kies een levertijd*"]

{"sheet":"Adres 5","index":5,"n_rows":41,"n_cols":5,"rows_kept":41,"cut":false,"hidden":false,"merged":[]}
[]
[null,"Bestellijst 5",null,null,"Factuuradres 5"]
[]
[null,"Kerstpakket naam","Aantal",null,"Bedrijfsnaam*"]
[null,null,null,null,"KvK-nummer*"]
[]
[null,null,null,null,"Aanhef*"]
[null,null,null,null,"Voornaam*"]
[null,null,null,null,"Tussenvoegsel"]
[null,null,null,null,"Achternaam*"]
[]
[null,null,null,null,"Straatnaam*"]
[null,null,null,null,"Huisnummer*"]
[null,null,null,null,"Toevoeging"]
[null,null,null,null,"Postcode*"]
[null,null,null,null,"Woonplaats*"]
[null,null,null,null,"Land*"]
[]
[null,null,null,null,"Bezorgadres 5"]
[]
[null,null,null,null,"Bedrijfsnaam*"]
[null,null,null,null,"Straatnaam*"]
[null,null,null,null,"Huisnummer*"]
[null,null,null,null,"Toevoeging"]
[null,null,null,null,"Postcode*"]
[null,null,null,null,"Woonplaats*"]
[null,null,null,null,"Land*"]
[]
[null,null,null,null,"Contactpersoon"]
[]
[null,null,null,null,"Aanhef*"]
[null,null,null,null,"Voornaam*"]
[null,null,null,null,"Tussenvoegsel"]
[null,null,null,null,"Achternaam*"]
[null,null,null,null,"E-mailadres*"]
[null,null,null,null,"Telefoonnummer*"]
[]
[null,null,null,null,"Bezorgmoment"]
[]
[null,null,null,null,"Kies uw bezorgdatum*"]
[null,null,null,null,"Kies een levertijd*"]

{"sheet":"Adres 6","index":6,"n_rows":41,"n_cols":5,"rows_kept":41,"cut":false,"hidden":false,"merged":[]}
[]
[null,"Bestellijst 6",null,null,"Factuuradres 6"]
[]
[null,"Kerstpakket naam","Aantal",null,"Bedrijfsnaam*"]
[null,null,null,null,"KvK-nummer*"]
[]
[null,null,null,null,"Aanhef*"]
[null,null,null,null,"Voornaam*"]
[null,null,null,null,"Tussenvoegsel"]
[null,null,null,null,"Achternaam*"]
[]
[null,null,null,null,"Straatnaam*"]
[null,null,null,null,"Huisnummer*"]
[null,null,null,null,"Toevoeging"]
[null,null,null,null,"Postcode*"]
[null,null,null,null,"Woonplaats*"]
[null,null,null,null,"Land*"]
[]
[null,null,null,null,"Bezorgadres 6"]
[]
[null,null,null,null,"Bedrijfsnaam*"]
[null,null,null,null,"Straatnaam*"]
[null,null,null,null,"Huisnummer*"]
[null,null,null,null,"Toevoeging"]
[null,null,null,null,"Postcode*"]
[null,null,null,null,"Woonplaats*"]
[null,null,null,null,"Land*"]
[]
[null,null,null,null,"Contactpersoon"]
[]
[null,null,null,null,"Aanhef*"]
[null,null,null,null,"Voornaam*"]
[null,null,null,null,"Tussenvoegsel"]
[null,null,null,null,"Achternaam*"]
[null,null,null,null,"E-mailadres*"]
[null,null,null,null,"Telefoonnummer*"]
[]
[null,null,null,null,"Bezorgmoment"]
[]
[null,null,null,null,"Kies uw bezorgdatum*"]
[null,null,null,null,"Kies een levertijd*"]

{"sheet":"Adres 7","index":7,"n_rows":41,"n_cols":5,"rows_kept":41,"cut":false,"hidden":false,"merged":[]}
[]
[null,"Bestellijst 7",null,null,"Factuuradres 7"]
[]
[null,"Kerstpakket naam","Aantal",null,"Bedrijfsnaam*"]
[null,null,null,null,"KvK-nummer*"]
[]
[null,null,null,null,"Aanhef*"]
[null,null,null,null,"Voornaam*"]
[null,null,null,null,"Tussenvoegsel"]
[null,null,null,null,"Achternaam*"]
[]
[null,null,null,null,"Straatnaam*"]
[null,null,null,null,"Huisnummer*"]
[null,null,null,null,"Toevoeging"]
[null,null,null,null,"Postcode*"]
[null,null,null,null,"Woonplaats*"]
[null,null,null,null,"Land*"]
[]
[null,null,null,null,"Bezorgadres 7"]
[]
[null,null,null,null,"Bedrijfsnaam*"]
[null,null,null,null,"Straatnaam*"]
[null,null,null,null,"Huisnummer*"]
[null,null,null,null,"Toevoeging"]
[null,null,null,null,"Postcode*"]
[null,null,null,null,"Woonplaats*"]
[null,null,null,null,"Land*"]
[]
[null,null,null,null,"Contactpersoon"]
[]
[null,null,null,null,"Aanhef*"]
[null,null,null,null,"Voornaam*"]
[null,null,null,null,"Tussenvoegsel"]
[null,null,null,null,"Achternaam*"]
[null,null,null,null,"E-mailadres*"]
[null,null,null,null,"Telefoonnummer*"]
[]
[null,null,null,null,"Bezorgmoment"]
[]
[null,null,null,null,"Kies uw bezorgdatum*"]
[null,null,null,null,"Kies een levertijd*"]

{"sheet":"Adres 8","index":8,"n_rows":41,"n_cols":5,"rows_kept":41,"cut":false,"hidden":false,"merged":[]}
[]
[null,"Bestellijst 8",null,null,"Factuuradres 8"]
[]
[null,"Kerstpakket naam","Aantal",null,"Bedrijfsnaam*"]
[null,null,null,null,"KvK-nummer*"]
[]
[null,null,null,null,"Aanhef*"]
[null,null,null,null,"Voornaam*"]
[null,null,null,null,"Tussenvoegsel"]
[null,null,null,null,"Achternaam*"]
[]
[null,null,null,null,"Straatnaam*"]
[null,null,null,null,"Huisnummer*"]
[null,null,null,null,"Toevoeging"]
[null,null,null,null,"Postcode*"]
[null,null,null,null,"Woonplaats*"]
[null,null,null,null,"Land*"]
[]
[null,null,null,null,"Bezorgadres 8"]
[]
[null,null,null,null,"Bedrijfsnaam*"]
[null,null,null,null,"Straatnaam*"]
[null,null,null,null,"Huisnummer*"]
[null,null,null,null,"Toevoeging"]
[null,null,null,null,"Postcode*"]
[null,null,null,null,"Woonplaats*"]
[null,null,null,null,"Land*"]
[]
[null,null,null,null,"Contactpersoon"]
[]
[null,null,null,null,"Aanhef*"]
[null,null,null,null,"Voornaam*"]
[null,null,null,null,"Tussenvoegsel"]
[null,null,null,null,"Achternaam*"]
[null,null,null,null,"E-mailadres*"]
[null,null,null,null,"Telefoonnummer*"]
[]
[null,null,null,null,"Bezorgmoment"]
[]
[null,null,null,null,"Kies uw bezorgdatum*"]
[null,null,null,null,"Kies een levertijd*"]

{"sheet":"Adres 9","index":9,"n_rows":41,"n_cols":5,"rows_kept":41,"cut":false,"hidden":false,"merged":[]}
[]
[null,"Bestellijst 9",null,null,"Factuuradres 9"]
[]
[null,"Kerstpakket naam","Aantal",null,"Bedrijfsnaam*"]
[null,null,null,null,"KvK-nummer*"]
[]
[null,null,null,null,"Aanhef*"]
[null,null,null,null,"Voornaam*"]
[null,null,null,null,"Tussenvoegsel"]
[null,null,null,null,"Achternaam*"]
[]
[null,null,null,null,"Straatnaam*"]
[null,null,null,null,"Huisnummer*"]
[null,null,null,null,"Toevoeging"]
[null,null,null,null,"Postcode*"]
[null,null,null,null,"Woonplaats*"]
[null,null,null,null,"Land*"]
[]
[null,null,null,null,"Bezorgadres 9"]
[]
[null,null,null,null,"Bedrijfsnaam*"]
[null,null,null,null,"Straatnaam*"]
[null,null,null,null,"Huisnummer*"]
[null,null,null,null,"Toevoeging"]
[null,null,null,null,"Postcode*"]
[null,null,null,null,"Woonplaats*"]
[null,null,null,null,"Land*"]
[]
[null,null,null,null,"Contactpersoon"]
[]
[null,null,null,null,"Aanhef*"]
[null,null,null,null,"Voornaam*"]
[null,null,null,null,"Tussenvoegsel"]
[null,null,null,null,"Achternaam*"]
[null,null,null,null,"E-mailadres*"]
[null,null,null,null,"Telefoonnummer*"]
[]
[null,null,null,null,"Bezorgmoment"]
[]
[null,null,null,null,"Kies uw bezorgdatum*"]
[null,null,null,null,"Kies een levertijd*"]

{"sheet":"Adres 10","index":10,"n_rows":41,"n_cols":5,"rows_kept":41,"cut":false,"hidden":false,"merged":[]}
[]
[null,"Bestellijst 10",null,null,"Factuuradres 10"]
[]
[null,"Kerstpakket naam","Aantal",null,"Bedrijfsnaam*"]
[null,null,null,null,"KvK-nummer*"]
[]
[null,null,null,null,"Aanhef*"]
[null,null,null,null,"Voornaam*"]
[null,null,null,null,"Tussenvoegsel"]
[null,null,null,null,"Achternaam*"]
[]
[null,null,null,null,"Straatnaam*"]
[null,null,null,null,"Huisnummer*"]
[null,null,null,null,"Toevoeging"]
[null,null,null,null,"Postcode*"]
[null,null,null,null,"Woonplaats*"]
[null,null,null,null,"Land*"]
[]
[null,null,null,null,"Bezorgadres 10"]
[]
[null,null,null,null,"Bedrijfsnaam*"]
[null,null,null,null,"Straatnaam*"]
[null,null,null,null,"Huisnummer*"]
[null,null,null,null,"Toevoeging"]
[null,null,null,null,"Postcode*"]
[null,null,null,null,"Woonplaats*"]
[null,null,null,null,"Land*"]
[]
[null,null,null,null,"Contactpersoon"]
[]
[null,null,null,null,"Aanhef*"]
[null,null,null,null,"Voornaam*"]
[null,null,null,null,"Tussenvoegsel"]
[null,null,null,null,"Achternaam*"]
[null,null,null,null,"E-mailadres*"]
[null,null,null,null,"Telefoonnummer*"]
[]
[null,null,null,null,"Bezorgmoment"]
[]
[null,null,null,null,"Kies uw bezorgdatum*"]
[null,null,null,null,"Kies een levertijd*"]

{"sheet":"Lijsten","index":11,"n_rows":81,"n_cols":23,"rows_kept":81,"cut":false,"hidden":true,"merged":[[39,18,39,19],[40,18,40,19],[41,18,41,19],[42,18,42,19],[38,18,38,19]]}
[null,null,null,"Jaar"]
[{"$f":"IF(WORKDAY.INTL(DATE($D$2,12,0),ROW(A1),\"0000011\")<=DATE($D$2,12,24),\n     WORKDAY.INTL(DATE($D$2,12,0),ROW(A1),\"0000011\"),\n     \"\")","v":"2025-12-01"},null,null,2025,null,"Standaard levering 08:00 - 17:00 (geen meerkosten)",null,"Geen",null,"Nederland",null,true]
[{"$f":"IF(WORKDAY.INTL(DATE($D$2,12,0),ROW(A2),\"0000011\")<=DATE($D$2,12,24),\n     WORKDAY.INTL(DATE($D$2,12,0),ROW(A2),\"0000011\"),\n     \"\")","v":"2025-12-02"},null,null,null,null,"Levering tussen 08:00 - 12:00 (+ €55,- excl. btw)",null,"Dhr.",null,"België"]
["2025-12-03",null,null,null,null,"Levering tussen 12:00 - 17:00 (+ €55,- excl. btw)",null,"Mevr.",null,"Duitsland"]
["2025-12-04"]
["2025-12-05"]
["2025-12-08"]
["2025-12-09"]
["2025-12-10"]
["2025-12-11"]
["2025-12-12"]
["2025-12-15"]
["2025-12-16"]
["2025-12-17"]
["2025-12-18"]
["2025-12-19"]
["2025-12-22"]
["2025-12-23"]
["2025-12-24"]
[{"$f":"IF(WORKDAY.INTL(DATE($D$2,12,0),ROW(A19),\"0000011\")<=DATE($D$2,12,24),\n     WORKDAY.INTL(DATE($D$2,12,0),ROW(A19),\"0000011\"),\n     \"\")","v":""}]
[""]
[null,null,null,null,null,null,null,null,null,null,null,null,null,null,"Hoe gebruikt u deze template?"]
[null,null,null,null,null,null,null,null,null,null,null,null,null,null,"1. Kies door middel van onderstaande checkbox of u per afleveradres een factuur wenst te ontvangen, of één verzamelfactuur voor alle afleveradressen."]
[null,null,null,null,null,null,null,null,null,null,null,null,null,null,"2. Vul op de volgende tabbladen bij Bestellijst de gewenste kerstpakketten en aantallen per locatie in. Noteer vervolgens bij Factuur- en bezorgadres x, Contactgegevens en Bezorgmoment de gegevens van de betreffende locatie, de contactpersoon en het gewenste bezorgmoment. Meer dan tien locaties? Ga dan verder met de elfde locatie op een blanco template."]
[null,null,null,null,null,null,null,null,null,null,null,null,null,null,"3. Sla de ingevulde template(s) op en stuur deze per e-mail naar info@kerstpakketten.nl. Wij nemen binnen één werkdag contact met u op om uw bestelling af te ronden. "]
[null,null,null,null,null,null,null,null,null,null,null,null,null,null,"Ik wil één verzamelfactuur ontvangen voor alle afleveradressen."]
[]
[]
[]
[]
[]
[]
[]
[]
[]
[]
[]
[]
[null,null,null,null,null,null,null,null,null,null,null,null,null,null,null,null,null,null,"Hoe gebruikt u deze template?"]
[null,null,null,null,null,null,null,null,null,null,null,null,null,null,null,null,null,null,"1. Kies door middel van onderstaande checkbox of u per afleveradres een factuur wenst te ontvangen, of één verzamelfactuur voor alle afleveradressen."]
[null,null,null,null,null,null,null,null,null,null,null,null,null,null,null,null,null,null,"2. Vul op dit tabblad de gegevens van de moedermaatschappij/hoofdlocatie in. De factuur wordt naar dit adres verzonden. Vul daarnaast uw eigen gegevens of die van de aangewezen contactpersoon volledig in."]
[null,null,null,null,null,null,null,null,null,null,null,null,null,null,null,null,null,null,"3. Vul op de volgende tabbladen bij Bestellijst de gewenste kerstpakketten en aantallen per locatie in. Noteer vervolgens bij Bezorgadres x, Contactgegevens en Bezorgmoment de gegevens van de betreffende locatie, de contactpersoon en het gewenste bezorgmoment. Meer dan tien locaties? Ga dan verder met de elfde locatie op een blanco template."]
[null,null,null,null,null,null,null,null,null,null,null,null,null,null,null,null,null,null,"4. Sla de ingevulde template(s) op en stuur deze per e-mail naar info@kerstpakketten.nl. Wij nemen binnen één werkdag contact met u op om uw bestelling af te ronden. "]
[]
[null,null,null,null,null,null,null,null,null,null,null,null,null,null,null,null,null,null,null,"Ik wil één verzamelfactuur ontvangen voor alle afleveradressen."]
[]
[null,null,null,null,null,null,null,null,null,null,null,null,null,null,null,null,null,null,"Factuuradres"]
[]
[null,null,null,null,null,null,null,null,null,null,null,null,null,null,null,null,null,null,"Bedrijfsnaam*"]
[null,null,null,null,null,null,null,null,null,null,null,null,null,null,null,null,null,null,"KvK-nummer*"]
[null,null,null,null,null,null,null,null,null,null,null,null,null,null,null,null,null,null,"BTW-nummer*"]
[null,null,null,null,null,null,null,null,null,null,null,null,null,null,null,null,null,null,"Straatnaam*"]
[null,null,null,null,null,null,null,null,null,null,null,null,null,null,null,null,null,null,"Huisnummer*"]
[null,null,null,null,null,null,null,null,null,null,null,null,null,null,null,null,null,null,"Toevoeging"]
[null,null,null,null,null,null,null,null,null,null,null,null,null,null,null,null,null,null,"Postcode*"]
[null,null,null,null,null,null,null,null,null,null,null,null,null,null,null,null,null,null,"Woonplaats*"]
[null,null,null,null,null,null,null,null,null,null,null,null,null,null,null,null,null,null,"Land*"]
[]
[null,null,null,null,null,null,null,null,null,null,null,null,null,null,null,null,null,null,"Contactpersoon"]
[]
[null,null,null,null,null,null,null,null,null,null,null,null,null,null,null,null,null,null,"Aanhef*"]
[null,null,null,null,null,null,null,null,null,null,null,null,null,null,null,null,null,null,"Voornaam*"]
[null,null,null,null,null,null,null,null,null,null,null,null,null,null,null,null,null,null,"Tussenvoegsel"]
[null,null,null,null,null,null,null,null,null,null,null,null,null,null,null,null,null,null,"Achternaam*"]
[null,null,null,null,null,null,null,null,null,null,null,null,null,null,null,null,null,null,"E-mailadres*"]
[null,null,null,null,null,null,null,null,null,null,null,null,null,null,null,null,null,null,"Telefoonnummer*"]
[]
[]
[]
[]
[]
[]
[]
[]
[]
[]
[]
[]
[null,null,null,null,null,null,null,null,null,null,null,null,null,null,null,null,null,null,null,null,null,null,"Hoe gebruikt u deze template?\n\n1. Kies door middel van onderstaande checkbox of u per afleveradres een factuur wenst te ontvangen, of één verzamelfactuur voor alle afleveradressen.\nLet op: grijze vlakken hoeft u niet in te vullen\n\n2. Vul op de volgende tabbladen bij Bestellijst x de gewenste kerstpakketten en aantallen per locatie in. Noteer vervolgens bij Factuur- en bezorgadres x, Contactgegevens en Bezorgmoment de gegevens van de betreffende locatie, de contactpersoon en het gewenste bezorgmoment. Meer dan tien locaties? Ga dan verder met de elfde locatie op een blanco template.\n\n3. Sla de ingevulde template(s) op en stuur deze per e-mail naar info@kerstpakketten.nl. Wij nemen binnen één werkdag contact met u op om uw bestelling af te ronden. "]
[]
[null,null,null,null,null,null,null,null,null,null,null,null,null,null,null,null,null,null,null,null,null,null,"Hoe gebruikt u deze template?\n\n1. Kies door middel van onderstaande checkbox of u per afleveradres een factuur wenst te ontvangen, of één verzamelfactuur voor alle afleveradressen.\n\n2. Vul op dit tabblad de gegevens van de moedermaatschappij/hoofdlocatie in. De factuur wordt naar dit adres verzonden. Vul daarnaast uw eigen gegevens of die van de aangewezen contactpersoon volledig in.\n\n3. Vul op de volgende tabbladen bij Bestellijst x de gewenste kerstpakketten en aantallen per locatie in. Noteer vervolgens bij Bezorgadres x, Contactgegevens en Bezorgmoment de gegevens van de betreffende locatie, de contactpersoon en het gewenste bezorgmoment. Meer dan tien locaties? Ga dan verder met de elfde locatie op een blanco template.\nLet op: grijze vlakken hoeft u niet in te vullen\n\n4. Sla de ingevulde template(s) op en stuur deze per e-mail naar info@kerstpakketten.nl. Wij nemen binnen één werkdag contact met u op om uw bestelling af te ronden. "]